fUST/lending_fUST_20240904
["ID","MTS","AMOUNT","RATE_DAILY","PERIOD"]
[337127233,1725448238690,-280.06784877,0.00027386,2]
[337127234,1725448238699,-500.0,0.00027386,2]
[337127235,1725448238708,-552.78827821,0.00027386,2]
[337127236,1725448238718,-500.0,0.00027386,2]
[337127237,1725448238729,-500.0,0.00027386,2]
[337127238,1725448238739,-500.0,0.00027386,2]
[337127239,1725448238750,-500.0,0.00027386,2]
[337127240,1725448238761,-500.0,0.00027386,2]
[337127241,1725448238771,-500.0,0.00027386,2]
[337127242,1725448238781,-500.0,0.00027386,2]
[337127243,1725448238790,-500.0,0.00027386,2]
[337127244,1725448238800,-500.0,0.00027386,2]
[337127245,1725448238810,-250.0,0.00027386,2]
[337127246,1725448238820,-500.0,0.00027386,2]
[337127247,1725448238830,-380.0,0.00027386,2]
[337127248,1725448238840,-500.0,0.00027386,2]
[337127249,1725448238850,-500.0,0.00027386,2]
[337127250,1725448238859,-500.0,0.00027386,2]
[337127251,1725448238868,-500.0,0.00027386,2]
[337127252,1725448238879,-500.0,0.00027386,2]
[337127253,1725448238890,-500.0,0.00027386,2]
[337127254,1725448238901,-500.0,0.00027386,2]
[337127255,1725448238911,-500.0,0.00027386,2]
[337127256,1725448238921,-500.0,0.00027386,2]
[337127258,1725448238932,-500.0,0.00027386,2]
[337127259,1725448238942,-500.0,0.00027386,2]
[337127261,1725448238953,-444.81495793,0.00027386,2]
[337127263,1725448238963,-648.37359857,0.00027386,2]
[337127265,1725448238977,-500.0,0.00027386,2]
[337127267,1725448238987,-500.0,0.00027386,2]
[337127270,1725448238998,-500.0,0.00027386,2]
[337127272,1725448239010,-500.0,0.00027386,2]
[337127274,1725448239020,-500.0,0.00027386,2]
[337127276,1725448239030,-500.0,0.00027386,2]
[337127278,1725448239040,-178.42012875,0.00027386,2]
[337127280,1725448239053,-300.0,0.00027386,2]
[337127283,1725448239065,-235.78,0.00027386,2]
[337127285,1725448239076,-235.78,0.00027386,2]
[337127287,1725448239087,-235.78,0.00027386,2]
[337127289,1725448239098,-235.78,0.00027386,2]
[337127291,1725448239108,-235.78,0.00027386,2]
[337127293,1725448239117,-235.78,0.00027386,2]
[337127295,1725448239128,-235.78,0.00027386,2]
[337127297,1725448239138,-235.78,0.00027386,2]
[337127300,1725448239151,-235.78,0.00027386,2]
[337127302,1725448239163,-235.78,0.00027386,2]
[337127304,1725448239174,-1091.65262457,0.00027387,15]
[337127306,1725448239184,-166.81128336,0.00027387,15]
[337127308,1725448239196,-319948.460907,0.00027387,3]
[337127310,1725448239208,-311577.70413056,0.00027387,2]
[337127313,1725448239223,-818.75508754,0.00027387,2]
[337127315,1725448239235,-1899.98176803,0.00027387,2]
[337127317,1725448239249,-1450.32835722,0.00027387,2]
[337127446,1725448240494,-59797.64775095,0.00027387,2]
[337127764,1725448243420,-3351.28847438,0.00027387,2]
[337128076,1725448246603,-736.87080341,0.00027387,2]
[337129911,1725448341772,622.093497,0.00024658,2]
[337129912,1725448346844,190.85108435,0.000249,2]
[337129947,1725449145607,-575.0,0.000246,2]
[337129948,1725449145632,-597.722604,0.00024658,2]
[337129949,1725449145654,-181.036056,0.00025377,2]
[337129950,1725449145856,-231.859692,0.0002564,2]
[337129951,1725449145881,-45.47504084,0.00025901,2]
[337129952,1725449157141,-166.66666666,0.00025277,2]
[337129953,1725449157164,-635.73968696,0.00025901,2]
[337129954,1725449157188,-1039.43924874,0.00025911,2]
[337129955,1725449159694,10000.0,0.000201,2]
[337129956,1725449173500,1700.0,0.000201,2]
[337129960,1725449225119,-1527.53762912,0.00025911,2]
[337129961,1725449237106,-564.72879354,0.00025911,2]
[337129962,1725449237130,-175.416257,0.00026174,2]
[337129963,1725449237154,-135.87156771,0.00026629,2]
[337129964,1725449248101,-39.54468929,0.00026629,2]
[337129965,1725449248124,-175.416257,0.00027083,2]
[337129966,1725449248148,-831.45,0.00027113,3]
[337129967,1725449248169,-692.87,0.00027113,3]
[337129968,1725449248190,-382.70460049,0.00027113,3]
[337129969,1725449248218,-194.69539951,0.00027113,3]
[337129970,1725449248238,-300.0,0.00027121,2]
[337129971,1725449248260,-300.0,0.00027121,2]
[337129972,1725449248282,-284.31376031,0.00027122,2]
[337129973,1725449248306,-423.39394315,0.00027122,2]
[337129974,1725449254195,-76.60605685,0.00027122,2]
[337129975,1725449254217,-205.32617815,0.00027122,2]
[337129976,1725449254239,-157.5045064,0.00027122,2]
[337129977,1725449254262,-500.0,0.00027122,2]
[337129978,1725449254289,-500.0,0.00027122,2]
[337129979,1725449254312,-500.0,0.00027122,2]
[337129980,1725449254335,-579.08553842,0.00027122,2]
[337129981,1725449254357,-216.09055088,0.00027122,2]
[337129982,1725449254380,-320.0,0.00027122,2]
[337129983,1725449254404,-238.70817762,0.00027122,2]
[337129984,1725449254426,-500.0,0.00027122,2]
[337129985,1725449254449,-546.04749413,0.00027122,2]
[337129986,1725449254470,-500.0,0.00027122,2]
[337129987,1725449254493,-500.0,0.00027122,2]
[337129988,1725449254515,-277.19117346,0.00027122,2]
[337129989,1725449254538,-255.82000217,0.00027122,2]
[337130081,1725449348126,-627.124949,0.00023,2]
[337130082,1725449348147,-399.48,0.00023384,2]
[337130083,1725449360133,-1029.92728206,0.000249,2]
[337130084,1725449370909,620.865266,0.00024658,2]
[337130136,1725449432491,-378.5520256,0.0002558,2]
[337130142,1725449432545,-805.39299121,0.0002558,2]
[337130194,1725449438735,-3768.51705489,0.0002558,2]
[337130195,1725449438745,-300.0,0.00026489,2]
[337130196,1725449438755,-300.0,0.00026489,2]
[337130197,1725449438765,-7458.94652043,0.0002649,2]
[337130198,1725449438775,-1000.0,0.00027023,2]
[337130199,1725449438784,-500.0,0.00027112,2]
[337130200,1725449438794,-199.01963222,0.00027112,2]
[337130201,1725449438806,-382.2332459,0.00027112,2]
[337130202,1725449438818,-500.0,0.00027112,2]
[337130203,1725449438827,-500.0,0.00027112,2]
[337130204,1725449438836,-500.0,0.00027112,2]
[337130205,1725449438845,-622.64769767,0.00027112,2]
[337130206,1725449438855,-500.0,0.00027112,2]
[337130207,1725449438865,-4043.81518824,0.00027113,3]
[337130208,1725449438877,-1345.19607478,0.00027113,3]
[337130255,1725449446525,-181.133726,0.00025775,2]
[337130256,1725449446535,-331419.25651798,0.00027113,3]
[337130257,1725449446544,-80704.5632423,0.00027113,2]
[337130258,1725449446554,-500.0,0.00027122,7]
[337130259,1725449446563,-545.82631228,0.00027123,15]
[337130260,1725449446572,-583.83949177,0.00027123,15]
[337130261,1725449446581,-91108.55248818,0.00027123,2]
[337132376,1725450114639,10000.0,0.000201,2]
[337132377,1725450122641,10000.0,0.000201,2]
[337132382,1725450137566,10000.0,0.000201,2]
[337132383,1725450147068,10000.0,0.000201,2]
[337132384,1725450160550,10000.0,0.000201,2]
[337132385,1725450169723,10000.0,0.000201,2]
[337132386,1725450177001,10000.0,0.000201,2]
[337132387,1725450184760,10000.0,0.000201,2]
[337132389,1725450191704,10000.0,0.000201,2]
[337132390,1725450200319,10000.0,0.000201,2]
[337132391,1725450208672,10000.0,0.000201,2]
[337132392,1725450214929,10000.0,0.000201,2]
[337132412,1725450344141,-302.18418731,0.00022,2]
[337132413,1725450344163,-307.58378216,0.0002222,2]
[337132414,1725450344185,-596.483386,0.00024658,2]
[337132415,1725450344207,-231.8596939,0.00025725,2]
[337132416,1725450344231,-888.4099702,0.00025792,2]
[337132417,1725450344254,-175.416257,0.00025913,2]
[337132418,1725450344278,-208.0368303,0.00026712,2]
[337132419,1725450344298,-378.5320329,0.00026852,2]
[337132420,1725450347103,-1588.00652284,0.00026852,2]
[337132424,1725450427093,-256.4630906,0.00026852,2]
[337132425,1725450427114,-908.1631209,0.00026942,2]
[337132426,1725450427145,-4650.00208707,0.00026942,2]
[337132427,1725450427167,-300.0,0.00026947,2]
[337132428,1725450427188,-300.0,0.00026947,2]
[337132429,1725450427209,-1000.0,0.00026948,2]
[337132430,1725450427231,-1536.62712569,0.00026973,2]
[337132431,1725450427254,-2093.87051264,0.00026973,2]
[337132432,1725450427278,-2093.8705126,0.00026986,2]
[337132433,1725450427300,-4130.18552678,0.00026988,2]
[337132434,1725450427329,-450.0,0.00026988,2]
[337132435,1725450431103,-1796.81251651,0.00026988,2]
[337132437,1725450443099,-3056.99031283,0.00025981,2]
[337132439,1725450450168,-2000.99967507,0.00025981,2]
[337132454,1725450576280,619.783002,0.00024658,2]
[337132476,1725450632563,-220.028643,0.00025599,2]
[337132477,1725450632573,-300.0,0.0002598,2]
[337132478,1725450632582,-300.0,0.0002598,2]
[337132479,1725450632593,-11264.2659426,0.00025981,2]
[337132481,1725450632602,-157.4118399,0.00026122,2]
[337132483,1725450632611,-150.0,0.00026175,2]
[337132485,1725450632620,-150.0,0.00026573,2]
[337132488,1725450632629,-151.12941269,0.0002682,2]
[337132490,1725450632639,-1000.0,0.00026913,2]
[337132492,1725450632650,-5722.95332281,0.00026988,2]
[337132494,1725450632659,-907.64,0.00026992,3]
[337132495,1725450632669,-2093.8705126,0.00026998,2]
[337132497,1725450632678,-1000.0,0.00027,2]
[337132499,1725450632691,-166.0,0.00027,2]
[337132500,1725450632700,-235.78,0.00027001,2]
[337132501,1725450632710,-235.78,0.00027001,2]
[337132502,1725450632719,-235.78,0.00027001,2]
[337132503,1725450632728,-235.78,0.00027001,2]
[337132504,1725450632737,-235.78,0.00027001,2]
[337132505,1725450632747,-15.82299916,0.00027001,2]
[337132510,1725450638661,-453.82,0.00026992,3]
[337132511,1725450638671,-1359.31,0.00026992,3]
[337132512,1725450638680,-219.95700084,0.00027001,2]
[337132513,1725450638693,-235.78,0.00027001,2]
[337132514,1725450638702,-235.78,0.00027001,2]
[337132515,1725450638711,-235.78,0.00027001,2]
[337132516,1725450638721,-235.78,0.00027001,2]
[337132517,1725450638731,-500.0,0.00027001,2]
[337132518,1725450638740,-500.0,0.00027001,2]
[337132519,1725450638750,-500.0,0.00027001,2]
[337132520,1725450638759,-500.0,0.00027001,2]
[337132522,1725450638772,-500.0,0.00027001,2]
[337132523,1725450638781,-250.0,0.00027001,2]
[337132524,1725450638790,-500.0,0.00027001,2]
[337132525,1725450638800,-500.0,0.00027001,2]
[337132526,1725450638809,-500.0,0.00027001,2]
[337132527,1725450638819,-503.32583396,0.00027001,2]
[337132528,1725450638829,-597.08907473,0.00027001,2]
[337132529,1725450638838,-500.0,0.00027001,2]
[337132530,1725450638847,-500.0,0.00027001,2]
[337132531,1725450638856,-500.0,0.00027001,2]
[337132532,1725450638866,-500.0,0.00027001,2]
[337132533,1725450638875,-500.0,0.00027001,2]
[337132534,1725450638885,-500.0,0.00027001,2]
[337132535,1725450638895,-500.0,0.00027001,2]
[337132536,1725450638905,-500.0,0.00027001,2]
[337132537,1725450638915,-500.0,0.00027001,2]
[337132538,1725450638924,-500.0,0.00027001,2]
[337132539,1725450638934,-500.0,0.00027001,2]
[337132540,1725450638943,-500.0,0.00027001,2]
[337132541,1725450638952,-500.0,0.00027001,2]
[337132542,1725450638961,-500.0,0.00027001,2]
[337132543,1725450638970,-500.0,0.00027001,2]
[337132544,1725450638980,-500.0,0.00027001,2]
[337132545,1725450638989,-262.59434408,0.00027001,2]
[337132546,1725450638998,-500.0,0.00027001,2]
[337132547,1725450639008,-500.0,0.00027001,2]
[337132548,1725450639017,-500.0,0.00027001,2]
[337132549,1725450639027,-500.0,0.00027001,2]
[337132550,1725450639036,-102599.056946,0.00027002,3]
[337132551,1725450639045,-23425.0979681,0.00027002,2]
[337132552,1725450639055,-500.0,0.00027002,2]
[337132553,1725450639064,-379.18487516,0.00027002,2]
[337132554,1725450639074,-398.28550817,0.00027002,2]
[337132555,1725450639083,-237.56692366,0.00027002,2]
[337132556,1725450639093,-500.0,0.00027002,2]
[337132557,1725450639102,-500.0,0.00027002,2]
[337132558,1725450639111,-178.42012875,0.00027002,2]
[337132559,1725450639121,-284.54479325,0.00027002,2]
[337132560,1725450639130,-500.0,0.00027002,2]
[337132561,1725450639139,-500.0,0.00027002,2]
[337132562,1725450639150,-500.0,0.00027002,2]
[337132563,1725450639160,-500.0,0.00027002,2]
[337132564,1725450639169,-500.0,0.00027002,2]
[337132565,1725450639179,-606.47029819,0.00027002,2]
[337132566,1725450639188,-500.0,0.00027002,2]
[337132567,1725450639198,-500.0,0.00027002,2]
[337132568,1725450639208,-500.0,0.00027002,2]
[337132569,1725450639218,-2383.41629154,0.00027003,15]
[337132570,1725450639232,-10443.50204711,0.00027003,15]
[337132571,1725450639242,-307797.170838,0.00027003,3]
[337132572,1725450639251,-23425.0979681,0.00027003,2]
[337132573,1725450639262,-53047.13970885,0.00027003,3]
[337132574,1725450639272,-2093.8705126,0.00027011,2]
[337132575,1725450639281,-2093.8705126,0.00027023,2]
[337132576,1725450639463,-501.00052669,0.00027073,2]
[337132577,1725450639475,-500.0,0.00027073,2]
[337132578,1725450639485,-500.0,0.00027073,2]
[337132579,1725450639495,-500.0,0.00027073,2]
[337132580,1725450639505,-319.3742308,0.00027073,2]
[337132581,1725450639515,-156.8571277,0.00027073,2]
[337132582,1725450639525,-151.0,0.00027093,7]
[337132583,1725450639535,-325.922296,0.00027093,7]
[337132584,1725450639546,-152.574795,0.00027093,7]
[337132585,1725450639556,-325.922296,0.00027093,7]
[337132586,1725450639568,-152.671603,0.00027093,7]
[337132587,1725450639579,-258.20129471,0.00027093,7]
[337132588,1725450639589,-151.0,0.00027093,2]
[337132589,1725450639598,-151.0,0.00027093,7]
[337132590,1725450639610,-151.0,0.00027093,7]
[337132591,1725450639620,-151.0,0.00027093,7]
[337132592,1725450639631,-151.0,0.00027093,7]
[337132593,1725450639640,-151.0,0.00027093,7]
[337132594,1725450639653,-151.0,0.00027093,7]
[337132595,1725450639664,-151.0,0.00027093,7]
[337132596,1725450639675,-151.0,0.00027093,7]
[337132597,1725450639687,-151.0,0.00027093,7]
[337132598,1725450639699,-151.0,0.00027093,7]
[337132599,1725450639708,-151.0,0.00027093,7]
[337132600,1725450639718,-151.0,0.00027093,7]
[337132601,1725450639729,-151.0,0.00027093,7]
[337132602,1725450639739,-151.0,0.00027093,7]
[337132603,1725450639749,-453.304574,0.00027093,7]
[337132604,1725450639759,-453.304574,0.00027093,7]
[337132605,1725450639771,-423.461974,0.00027093,7]
[337132606,1725450639781,-423.461974,0.00027093,7]
[337132607,1725450639791,-151.0,0.00027093,7]
[337132608,1725450639800,-152.226361,0.00027093,7]
[337132609,1725450639809,-151.0,0.00027093,7]
[337132610,1725450639818,-151.0,0.00027093,7]
[337132611,1725450639829,-171.260967,0.00027093,7]
[337132612,1725450639838,-150.112233,0.000271,10]
[337132613,1725450639849,-150.112233,0.000271,9]
[337132614,1725450639859,-150.112233,0.000271,8]
[337132615,1725450639869,-150.112233,0.000271,8]
[337132616,1725450639880,-150.112233,0.000271,10]
[337132617,1725450639890,-150.112233,0.000271,6]
[337132618,1725450639900,-150.112233,0.000271,5]
[337132619,1725450639911,-150.112233,0.000271,8]
[337132620,1725450639921,-150.112233,0.000271,6]
[337132621,1725450639930,-150.112233,0.000271,7]
[337132622,1725450639940,-150.112233,0.000271,6]
[337132623,1725450639950,-150.112233,0.000271,10]
[337132624,1725450639959,-268.096753,0.000271,5]
[337132625,1725450639969,-156.369484,0.00027103,7]
[337132626,1725450639980,-151.0,0.00027103,7]
[337132627,1725450639990,-151.0,0.00027103,7]
[337132628,1725450640001,-325.922296,0.00027103,7]
[337132629,1725450640011,-325.922296,0.00027103,7]
[337132630,1725450640022,-252.108064,0.00027103,2]
[337132631,1725450640032,-151.0,0.00027103,7]
[337132632,1725450640043,-151.0,0.00027103,7]
[337132633,1725450640052,-247.243667,0.00027103,7]
[337132634,1725450640063,-151.0,0.00027103,7]
[337132635,1725450640075,-151.0,0.00027103,7]
[337132636,1725450640086,-151.0,0.00027103,7]
[337132637,1725450640097,-151.0,0.00027103,7]
[337132638,1725450640107,-151.0,0.00027103,7]
[337132639,1725450640116,-252.904328,0.00027103,7]
[337132640,1725450640126,-151.0,0.00027103,7]
[337132642,1725450640135,-151.0,0.00027103,7]
[337132643,1725450640144,-151.0,0.00027103,7]
[337132645,1725450640155,-151.0,0.00027103,7]
[337132646,1725450640165,-151.0,0.00027103,7]
[337132648,1725450640175,-453.304574,0.00027103,7]
[337132649,1725450640185,-453.304574,0.00027103,7]
[337132650,1725450640194,-423.461974,0.00027103,7]
[337132651,1725450640205,-423.461974,0.00027103,7]
[337132652,1725450640215,-276.458965,0.00027103,7]
[337132653,1725450640226,-151.0,0.00027103,7]
[337132655,1725450640236,-151.0,0.00027103,7]
[337132656,1725450640245,-151.0,0.00027113,7]
[337132658,1725450640254,-151.0,0.00027113,7]
[337132659,1725450640264,-325.922296,0.00027113,7]
[337132660,1725450640273,-325.922296,0.00027113,7]
[337132661,1725450640283,-151.0,0.00027113,7]
[337132662,1725450640292,-151.0,0.00027113,7]
[337132663,1725450640302,-151.0,0.00027113,7]
[337132664,1725450640313,-151.0,0.00027113,7]
[337132665,1725450640322,-151.0,0.00027113,7]
[337132666,1725450640333,-151.0,0.00027113,7]
[337132668,1725450640343,-151.0,0.00027113,7]
[337132670,1725450640355,-283.836942,0.00027113,7]
[337132672,1725450640366,-151.0,0.00027113,7]
[337132674,1725450640376,-151.0,0.00027113,7]
[337132677,1725450640387,-151.0,0.00027113,7]
[337132679,1725450640399,-151.0,0.00027113,7]
[337132681,1725450640409,-453.304574,0.00027113,7]
[337132683,1725450640419,-453.304574,0.00027113,7]
[337132685,1725450640430,-423.461974,0.00027113,7]
[337132687,1725450640440,-423.461974,0.00027113,7]
[337132689,1725450640451,-151.0,0.00027113,7]
[337132691,1725450640462,-151.0,0.00027113,7]
[337132693,1725450640471,-23425.0979681,0.00027113,2]
[337132695,1725450640481,-32203.08068737,0.00027122,7]
[337132697,1725450640491,-4593.25700352,0.00027123,15]
[337132700,1725450640502,-2585.2375981,0.00027123,2]
[337132702,1725450640515,-905305.20991372,0.00027123,2]
[337132704,1725450640525,-151.0,0.00027123,7]
[337132706,1725450640536,-151.094176,0.00027123,7]
[337132708,1725450640547,-170.507214,0.00027123,7]
[337132711,1725450640557,-152.943172,0.00027123,7]
[337132713,1725450640569,-151.0,0.00027123,7]
[337132715,1725450640581,-151.0,0.00027123,7]
[337132717,1725450640591,-151.0,0.00027123,7]
[337132719,1725450640602,-353.389332,0.00027123,2]
[337132722,1725450640613,-353.389332,0.00027123,2]
[337132724,1725450640624,-246.42451888,0.00027123,2]
[337132726,1725450640634,-151.0,0.00027123,7]
[337132728,1725450640644,-231.83372,0.00027123,7]
[337132730,1725450640655,-151.0,0.00027123,7]
[337132732,1725450640666,-151.0,0.00027123,7]
[337132734,1725450640676,-325.922296,0.00027123,7]
[337132736,1725450640690,-325.922296,0.00027123,7]
[337132739,1725450640703,-151.0,0.00027123,7]
[337132741,1725450640715,-151.0,0.00027123,7]
[337132743,1725450640726,-151.0,0.00027123,7]
[337132746,1725450640738,-151.0,0.00027123,7]
[337132748,1725450640750,-151.0,0.00027123,7]
[337132750,1725450640760,-151.0,0.00027123,7]
[337132752,1725450640773,-151.0,0.00027123,7]
[337132754,1725450640783,-151.0,0.00027123,7]
[337132756,1725450640793,-151.0,0.00027123,7]
[337132758,1725450640802,-151.0,0.00027123,7]
[337132760,1725450640813,-151.0,0.00027123,7]
[337132762,1725450640822,-453.304574,0.00027123,7]
[337132764,1725450640832,-453.304574,0.00027123,7]
[337132766,1725450640841,-423.461974,0.00027123,7]
[337132768,1725450640851,-423.461974,0.00027123,7]
[337132771,1725450640860,-151.0,0.00027123,7]
[337132773,1725450640870,-151.0,0.00027123,7]
[337132775,1725450640881,-151.0,0.00027123,2]
[337132777,1725450640891,-151.0,0.00027123,7]
[337132779,1725450640903,-500.0,0.00027173,2]
[337132781,1725450640913,-200.15807288,0.00027173,2]
[337132783,1725450640923,-500.94504749,0.00027173,2]
[337132785,1725450640933,-500.0,0.00027173,2]
[337132787,1725450640944,-310.18713937,0.00027173,2]
[337132789,1725450640954,-500.0,0.00027173,2]
[337132791,1725450640963,-343.36791284,0.00027173,2]
[337132793,1725450640972,-312515.66,0.000272,14]
[337132795,1725450640982,-151.0,0.000272,7]
[337132797,1725450640992,-151.0,0.000272,7]
[337132799,1725450641001,-353.389332,0.000272,2]
[337132801,1725450641010,-353.389332,0.000272,2]
[337132803,1725450641019,-151.0,0.000272,7]
[337132805,1725450641029,-151.0,0.000272,7]
[337132807,1725450641038,-154.096096,0.000272,7]
[337132809,1725450641048,-158.450172,0.000272,7]
[337132812,1725450641058,-158.518583,0.000272,7]
[337132814,1725450641067,-177.934709,0.000272,7]
[337132816,1725450641077,-151.0,0.000272,7]
[337132818,1725450641086,-325.922296,0.000272,7]
[337132820,1725450641096,-325.922296,0.000272,7]
[337132822,1725450641105,-151.0,0.000272,7]
[337132824,1725450641116,-151.0,0.000272,7]
[337132826,1725450641126,-151.0,0.000272,7]
[337132828,1725450641137,-151.0,0.000272,7]
[337132830,1725450641148,-151.0,0.000272,7]
[337132832,1725450641157,-151.0,0.000272,7]
[337132834,1725450641168,-151.0,0.000272,7]
[337132836,1725450641178,-151.0,0.000272,7]
[337132839,1725450641189,-151.0,0.000272,7]
[337132841,1725450641201,-151.0,0.000272,7]
[337132843,1725450641211,-151.0,0.000272,7]
[337132845,1725450641222,-453.304574,0.000272,7]
[337132847,1725450641232,-453.304574,0.000272,7]
[337132850,1725450641243,-423.461974,0.000272,7]
[337132852,1725450641252,-423.461974,0.000272,7]
[337132854,1725450641263,-151.0,0.000272,7]
[337132856,1725450641272,-151.0,0.000272,7]
[337132858,1725450641281,-151.0,0.000272,2]
[337132860,1725450641290,-301.63153,0.000272,7]
[337132862,1725450641300,-30000.0,0.00027268,2]
[337132864,1725450641309,-2395.87065616,0.00027297,2]
[337132866,1725450641318,-500.0,0.00027373,2]
[337132868,1725450641327,-500.36432075,0.00027373,2]
[337132870,1725450641336,-245.80960957,0.00027386,2]
[337132872,1725450641346,-1082.90724398,0.00027386,2]
[337132874,1725450641355,-500.0,0.00027396,2]
[337132876,1725450641364,-500.0,0.00027396,2]
[337132878,1725450641375,-816.41929846,0.00027396,2]
[337132880,1725450641384,-500.0,0.00027397,2]
[337132882,1725450641394,-500.0,0.00027397,2]
[337132884,1725450641404,-500.0,0.00027397,2]
[337132886,1725450641414,-501.50774368,0.00027397,2]
[337132888,1725450641423,-492.92691063,0.00027397,2]
[337132890,1725450641433,-500.0,0.00027397,2]
[337132891,1725450641442,-500.0,0.00027397,2]
[337132894,1725450641452,-529.99192648,0.00027397,2]
[337132896,1725450641462,-500.0,0.00027397,2]
[337132898,1725450641473,-500.0,0.00027397,2]
[337132900,1725450641482,-518.54447405,0.00027397,2]
[337132902,1725450641493,-500.0,0.00027397,2]
[337132903,1725450641502,-500.0,0.00027397,2]
[337132904,1725450641511,-500.0,0.00027397,2]
[337132905,1725450641521,-500.0,0.00027397,2]
[337132906,1725450641531,-500.0,0.00027397,2]
[337132907,1725450641542,-427.3975696,0.00027397,2]
[337132908,1725450641552,-500.0,0.00027397,2]
[337132909,1725450641562,-500.0,0.00027397,2]
[337132910,1725450641573,-500.0,0.00027397,2]
[337132911,1725450641585,-500.0,0.00027397,2]
[337132912,1725450641596,-500.0,0.00027397,2]
[337132913,1725450641607,-500.0,0.00027397,2]
[337132914,1725450641618,-500.0,0.00027397,2]
[337132915,1725450641629,-500.0,0.00027397,2]
[337132916,1725450641638,-500.0,0.00027397,2]
[337132917,1725450641651,-500.0,0.00027397,2]
[337132918,1725450641670,-500.0,0.00027397,2]
[337132919,1725450641679,-500.0,0.00027397,2]
[337132920,1725450641691,-525.77,0.00027397,2]
[337132921,1725450641700,-500.0,0.00027397,2]
[337132922,1725450641710,-500.0,0.00027397,2]
[337132923,1725450641720,-500.0,0.00027397,2]
[337132924,1725450641730,-500.0,0.00027397,2]
[337132926,1725450641739,-500.0,0.00027397,2]
[337132928,1725450641751,-500.0,0.00027397,2]
[337132930,1725450641761,-504.05985365,0.00027397,2]
[337132932,1725450641774,-500.0,0.00027397,2]
[337132934,1725450641784,-500.0,0.00027397,2]
[337132936,1725450641794,-500.0,0.00027397,2]
[337132938,1725450641803,-500.0,0.00027397,2]
[337132940,1725450641813,-500.0,0.00027397,2]
[337132943,1725450641824,-500.0,0.00027397,2]
[337132945,1725450641835,-500.0,0.00027397,2]
[337132947,1725450641848,-2721.54,0.00027397,2]
[337132949,1725450641857,-676.43,0.00027397,2]
[337132951,1725450641868,-500.43665897,0.00027397,2]
[337132953,1725450641877,-500.0,0.00027397,2]
[337132955,1725450641887,-501.80450864,0.00027397,2]
[337132957,1725450641900,-632.09,0.00027397,2]
[337132959,1725450641912,-500.0,0.00027397,2]
[337132961,1725450641922,-500.0,0.00027397,2]
[337132963,1725450641933,-500.0,0.00027397,2]
[337132966,1725450641944,-500.0,0.00027397,2]
[337132968,1725450641954,-500.0,0.00027397,2]
[337132970,1725450641963,-500.0,0.00027397,2]
[337132972,1725450641972,-500.0,0.00027397,2]
[337132974,1725450641982,-500.0,0.00027397,2]
[337132989,1725450642115,-500.0,0.00027397,2]
[337132991,1725450642126,-500.0,0.00027397,2]
[337132993,1725450642136,-500.0,0.00027397,2]
[337132995,1725450642148,-500.0,0.00027397,2]
[337132997,1725450642159,-500.0,0.00027397,2]
[337132999,1725450642170,-500.0,0.00027397,2]
[337133001,1725450642180,-500.0,0.00027397,2]
[337133003,1725450642191,-500.0,0.00027397,2]